[Event "Early-Titled-Tuesday-Blitz-May-28-2024"]
[Site "Chess.com"]
[Date "2024.05.28"]
[Round "10"]
[White "Kors67"]
[Black "RespectfulDaveOnYouTube"]
[Result "1-0"]
[WhiteElo "2293"]
[BlackElo "2477"]
[TimeControl "180+1"]
[EndTime "9:58:39 PDT"]
[Termination "Kors67 won on time"]

1. e4 {[%clk 0:03:00.9]} 1... d5 {[%clk 0:03:00.3]} 2. exd5 {[%clk 0:03:00]}
2... c6 {[%clk 0:03:00.8]} 3. dxc6 {[%clk 0:02:58.5]} 3... Nxc6 {[%clk
0:02:59.9]} 4. Nf3 {[%clk 0:02:48.1]} 4... e5 {[%clk 0:02:59.7]} 5. d3 {[%clk
0:02:40.2]} 5... Bd6 {[%clk 0:02:59.4]} 6. Be2 {[%clk 0:02:39.6]} 6... Nge7
{[%clk 0:02:59.1]} 7. O-O {[%clk 0:02:39.1]} 7... O-O {[%clk 0:02:59.1]} 8. Re1
{[%clk 0:02:31.4]} 8... Qc7 {[%clk 0:02:55.8]} 9. Nc3 {[%clk 0:02:26.2]} 9... a6
{[%clk 0:02:55]} 10. Ne4 {[%clk 0:02:24]} 10... Bb4 {[%clk 0:02:49.9]} 11. Bd2
{[%clk 0:02:06.9]} 11... f5 {[%clk 0:02:50]} 12. Bxb4 {[%clk 0:01:56.8]} 12...
fxe4 {[%clk 0:02:50.1]} 13. Bxe7 {[%clk 0:01:56.7]} 13... exf3 {[%clk
0:02:50.4]} 14. Bxf8 {[%clk 0:01:55.8]} 14... fxe2 {[%clk 0:02:50.7]} 15. Qxe2
{[%clk 0:01:51.8]} 15... Kxf8 {[%clk 0:02:49.9]} 16. Qe4 {[%clk 0:01:39.2]}
16... Kg8 {[%clk 0:02:44.9]} 17. c3 {[%clk 0:01:39.5]} 17... Qf7 {[%clk
0:02:42.7]} 18. d4 {[%clk 0:01:27.7]} 18... Bf5 {[%clk 0:02:42.5]} 19. Qe3
{[%clk 0:01:22.5]} 19... e4 {[%clk 0:02:31.7]} 20. f3 {[%clk 0:01:10.9]} 20...
Re8 {[%clk 0:02:16.3]} 21. fxe4 {[%clk 0:01:08.6]} 21... Bxe4 {[%clk 0:02:13.7]}
22. Qf2 {[%clk 0:01:07.8]} 22... Qg6 {[%clk 0:02:11.6]} 23. Re3 {[%clk
0:01:00.3]} 23... Bd5 {[%clk 0:01:51.1]} 24. Rxe8+ {[%clk 0:00:55.4]} 24... Qxe8
{[%clk 0:01:50.1]} 25. Re1 {[%clk 0:00:55.9]} 25... Qg6 {[%clk 0:01:42.9]} 26.
b3 {[%clk 0:00:55.5]} 26... b5 {[%clk 0:01:25.8]} 27. Qe2 {[%clk 0:00:47.2]}
27... h6 {[%clk 0:01:06]} 28. c4 {[%clk 0:00:38.1]} 28... bxc4 {[%clk
0:00:53.4]} 29. bxc4 {[%clk 0:00:37.9]} 29... Nxd4 {[%clk 0:00:17.2]} 30. Qe8+
{[%clk 0:00:31.4]} 30... Qxe8 {[%clk 0:00:17.5]} 31. Rxe8+ {[%clk 0:00:31.4]}
31... Kf7 {[%clk 0:00:18.4]} 32. Rc8 {[%clk 0:00:20]} 32... Be6 {[%clk
0:00:10.6]} 33. Rc7+ {[%clk 0:00:19.9]} 33... Kf6 {[%clk 0:00:10.7]} 34. Kf2
{[%clk 0:00:20.1]} 34... h5 {[%clk 0:00:07.7]} 35. Ke3 {[%clk 0:00:14.4]} 35...
Nf5+ {[%clk 0:00:06.7]} 36. Kd3 {[%clk 0:00:12.2]} 36... g5 {[%clk 0:00:03.9]}
37. Rc6 {[%clk 0:00:11.2]} 37... Ke5 {[%clk 0:00:01.5]} 38. Rxa6 {[%clk
0:00:10.4]} 38... Nd6 {[%clk 0:00:02]} 39. Rc6 {[%clk 0:00:09.2]} 39... Bf5+
{[%clk 0:00:01.6]} 40. Kc3 {[%clk 0:00:08.2]} 40... Ne4+ {[%clk 0:00:01.6]} 41.
Kb4 {[%clk 0:00:07.9]} 41... Nd2 {[%clk 0:00:01]} 42. Rc5+ {[%clk 0:00:04.7]}
42... Ke6 {[%clk 0:00:00.8]} 43. a4 {[%clk 0:00:03.6]} 43... Kf6 {[%clk
0:00:01]} 44. a5 {[%clk 0:00:03.9]} 44... Be4 {[%clk 0:00:01.4]} 45. a6 {[%clk
0:00:03.2]} 45... Bxg2 {[%clk 0:00:01.2]} 46. a7 {[%clk 0:00:02.9]} 46... h4
{[%clk 0:00:01]} 47. Rd5 {[%clk 0:00:03.1]} 1-0

[Event "Early-Titled-Tuesday-Blitz-May-28-2024"]
[Site "Chess.com"]
[Date "2024.05.28"]
[Round "10"]
[White "andrzej"]
[Black "Irina_Mikhaylova"]
[Result "1/2-1/2"]
[WhiteElo "2474"]
[BlackElo "2354"]
[TimeControl "180+1"]
[EndTime "9:58:39 PDT"]
[Termination "Game drawn - insufficient material"]

1. e4 {[%clk 0:03:00.2]} 1... c5 {[%clk 0:03:00.1]} 2. Nf3 {[%clk 0:03:00.5]}
2... Nc6 {[%clk 0:03:00.5]} 3. d4 {[%clk 0:03:01.1]} 3... cxd4 {[%clk 0:03:01]}
4. Nxd4 {[%clk 0:03:02]} 4... e5 {[%clk 0:03:01.6]} 5. Nb5 {[%clk 0:03:01.7]}
5... d6 {[%clk 0:03:02]} 6. N1c3 {[%clk 0:02:58.7]} 6... a6 {[%clk 0:03:01.9]}
7. Na3 {[%clk 0:02:59.3]} 7... b5 {[%clk 0:03:02.5]} 8. Nd5 {[%clk 0:02:57.5]}
8... Nge7 {[%clk 0:03:03]} 9. Bd3 {[%clk 0:02:53.1]} 9... Nxd5 {[%clk
0:02:59.4]} 10. exd5 {[%clk 0:02:53]} 10... Ne7 {[%clk 0:03:00]} 11. c4 {[%clk
0:02:50]} 11... b4 {[%clk 0:02:59.8]} 12. Nc2 {[%clk 0:02:49.5]} 12... a5 {[%clk
0:02:59.8]} 13. O-O {[%clk 0:02:49.2]} 13... Ng6 {[%clk 0:02:59.5]} 14. Ne3
{[%clk 0:02:27.7]} 14... Be7 {[%clk 0:02:58.9]} 15. Nf5 {[%clk 0:02:27.8]} 15...
O-O {[%clk 0:02:50.6]} 16. Qh5 {[%clk 0:02:20.9]} 16... Bf6 {[%clk 0:02:23.9]}
17. Re1 {[%clk 0:02:20.7]} 17... a4 {[%clk 0:02:08]} 18. Be4 {[%clk 0:02:20.2]}
18... Bxf5 {[%clk 0:01:53.2]} 19. Bxf5 {[%clk 0:02:13.7]} 19... e4 {[%clk
0:01:49.6]} 20. Rxe4 {[%clk 0:02:07.5]} 20... a3 {[%clk 0:01:48.1]} 21. Re2
{[%clk 0:01:44]} 21... Re8 {[%clk 0:01:35.3]} 22. Rb1 {[%clk 0:01:38]} 22...
Rxe2 {[%clk 0:01:26.1]} 23. Qxe2 {[%clk 0:01:36.9]} 23... axb2 {[%clk
0:01:26.5]} 24. Bxb2 {[%clk 0:01:34.4]} 24... Rxa2 {[%clk 0:01:26.6]} 25. Bxf6
{[%clk 0:01:32.4]} 25... Qxf6 {[%clk 0:01:17.2]} 26. Qxa2 {[%clk 0:01:29.7]}
26... Qxf5 {[%clk 0:01:17.3]} 27. Qa8+ {[%clk 0:01:19.8]} 27... Nf8 {[%clk
0:01:16.8]} 28. Rxb4 {[%clk 0:01:20.2]} 28... Qe4 {[%clk 0:01:09.3]} 29. Qa1
{[%clk 0:01:08.9]} 29... h6 {[%clk 0:01:05.1]} 30. Rb6 {[%clk 0:00:58.4]} 30...
Qxc4 {[%clk 0:00:58.4]} 31. Rxd6 {[%clk 0:00:57.8]} 31... Ng6 {[%clk 0:00:58.8]}
32. g3 {[%clk 0:00:46.6]} 32... Kh7 {[%clk 0:00:57.6]} 33. Rxg6 {[%clk
0:00:43.8]} 33... Kxg6 {[%clk 0:00:39.9]} 34. Qe5 {[%clk 0:00:44.1]} 34... f6
{[%clk 0:00:29.8]} 35. Qe6 {[%clk 0:00:40.8]} 35... h5 {[%clk 0:00:25.8]} 36. h4
{[%clk 0:00:38.8]} 36... Qc1+ {[%clk 0:00:21.2]} 37. Kg2 {[%clk 0:00:38.6]}
37... Qc4 {[%clk 0:00:21.8]} 38. Kh2 {[%clk 0:00:19.4]} 38... Qd4 {[%clk
0:00:15]} 39. Qe8+ {[%clk 0:00:18.7]} 39... Kh6 {[%clk 0:00:14]} 40. Qe3+ {[%clk
0:00:18.8]} 40... Qxe3 {[%clk 0:00:14]} 41. fxe3 {[%clk 0:00:19.7]} 41... Kg6
{[%clk 0:00:14.5]} 42. Kg2 {[%clk 0:00:18.2]} 42... Kf5 {[%clk 0:00:14.3]} 43.
Kf3 {[%clk 0:00:17.7]} 43... Ke5 {[%clk 0:00:14.8]} 44. e4 {[%clk 0:00:18.1]}
44... f5 {[%clk 0:00:15.3]} 45. exf5 {[%clk 0:00:18.2]} 45... Kxf5 {[%clk
0:00:14]} 46. g4+ {[%clk 0:00:16.9]} 46... hxg4+ {[%clk 0:00:13.6]} 47. Kg3
{[%clk 0:00:17.6]} 47... Ke5 {[%clk 0:00:14]} 48. Kxg4 {[%clk 0:00:18.2]} 48...
Kxd5 {[%clk 0:00:14.6]} 49. Kg5 {[%clk 0:00:18.9]} 49... Ke5 {[%clk 0:00:08.3]}
50. Kg6 {[%clk 0:00:19.4]} 50... Kf4 {[%clk 0:00:08.8]} 51. h5 {[%clk
0:00:12.2]} 51... Kg4 {[%clk 0:00:09.2]} 52. Kxg7 {[%clk 0:00:12]} 52... Kxh5
{[%clk 0:00:09.2]} 1/2-1/2

[Event "Early-Titled-Tuesday-Blitz-May-28-2024"]
[Site "Chess.com"]
[Date "2024.05.28"]
[Round "10"]
[White "GeorgiosSouleidis"]
[Black "MaiqMaster"]
[Result "1/2-1/2"]
[WhiteElo "2606"]
[BlackElo "2479"]
[TimeControl "180+1"]
[EndTime "9:58:40 PDT"]
[Termination "Game drawn by repetition"]

1. e4 {[%clk 0:03:00.9]} 1... c5 {[%clk 0:02:59.8]} 2. Be2 {[%clk 0:03:00.8]}
2... e6 {[%clk 0:02:56.5]} 3. d3 {[%clk 0:03:01.1]} 3... Nc6 {[%clk 0:02:52]} 4.
f4 {[%clk 0:03:01.2]} 4... d5 {[%clk 0:02:49.7]} 5. Nf3 {[%clk 0:03:01.5]} 5...
dxe4 {[%clk 0:02:47.8]} 6. dxe4 {[%clk 0:03:02.3]} 6... Qxd1+ {[%clk 0:02:48.2]}
7. Bxd1 {[%clk 0:03:03.2]} 7... b6 {[%clk 0:02:48.6]} 8. c3 {[%clk 0:03:03.2]}
8... Bb7 {[%clk 0:02:48.6]} 9. Bc2 {[%clk 0:03:03.8]} 9... Nf6 {[%clk
0:02:46.3]} 10. Be3 {[%clk 0:03:03.2]} 10... Be7 {[%clk 0:02:44.4]} 11. Nbd2
{[%clk 0:03:03.3]} 11... O-O {[%clk 0:02:41.8]} 12. O-O-O {[%clk 0:03:02.5]}
12... Rfd8 {[%clk 0:02:40.3]} 13. h3 {[%clk 0:03:02.7]} 13... Rd7 {[%clk
0:02:29.9]} 14. g4 {[%clk 0:03:01]} 14... Rad8 {[%clk 0:02:27.3]} 15. Rhg1
{[%clk 0:02:58.9]} 15... Na5 {[%clk 0:02:21]} 16. g5 {[%clk 0:02:43.8]} 16...
Ne8 {[%clk 0:02:20.9]} 17. Ne5 {[%clk 0:02:27]} 17... Rc7 {[%clk 0:02:16.6]} 18.
h4 {[%clk 0:02:07.8]} 18... Ba6 {[%clk 0:02:09.9]} 19. b3 {[%clk 0:02:00.3]}
19... Bd6 {[%clk 0:02:02.5]} 20. Ndf3 {[%clk 0:01:42.1]} 20... Rcc8 {[%clk
0:01:59.9]} 21. Rd2 {[%clk 0:01:33.4]} 21... Bxe5 {[%clk 0:01:38.1]} 22. Nxe5
{[%clk 0:01:33.7]} 22... Bb7 {[%clk 0:01:32.4]} 23. Rgd1 {[%clk 0:01:06.9]}
23... Rxd2 {[%clk 0:01:31.8]} 24. Rxd2 {[%clk 0:01:07.5]} 24... Nc6 {[%clk
0:01:31]} 25. Rd7 {[%clk 0:00:55.7]} 25... Rc7 {[%clk 0:01:12.3]} 26. Rxc7
{[%clk 0:00:55.8]} 26... Nxc7 {[%clk 0:01:11.6]} 27. Nxc6 {[%clk 0:00:55.3]}
27... Bxc6 {[%clk 0:01:12.5]} 28. Kd2 {[%clk 0:00:47.4]} 28... Kf8 {[%clk
0:01:11.5]} 29. h5 {[%clk 0:00:47.5]} 29... g6 {[%clk 0:01:09.4]} 30. h6 {[%clk
0:00:45.7]} 30... Ke7 {[%clk 0:01:07.1]} 31. e5 {[%clk 0:00:39.7]} 31... Nd5
{[%clk 0:01:04.8]} 32. c4 {[%clk 0:00:38.6]} 32... Nb4 {[%clk 0:00:48.4]} 33.
Bb1 {[%clk 0:00:36.8]} 33... a5 {[%clk 0:00:48.3]} 34. a3 {[%clk 0:00:36.3]}
34... Na6 {[%clk 0:00:48.3]} 35. Kc3 {[%clk 0:00:25.9]} 35... Bf3 {[%clk
0:00:40.7]} 36. Bd3 {[%clk 0:00:25.4]} 36... Kd7 {[%clk 0:00:37.2]} 37. Bd2
{[%clk 0:00:25.4]} 37... Kc6 {[%clk 0:00:34.4]} 38. Bf1 {[%clk 0:00:25.4]} 38...
Nc7 {[%clk 0:00:30.4]} 39. b4 {[%clk 0:00:23.2]} 39... axb4+ {[%clk 0:00:29.3]}
40. axb4 {[%clk 0:00:24.1]} 40... cxb4+ {[%clk 0:00:30.1]} 41. Kxb4 {[%clk
0:00:24.6]} 41... Na6+ {[%clk 0:00:30.7]} 42. Kc3 {[%clk 0:00:22.1]} 42... Nc5
{[%clk 0:00:30.8]} 43. Be3 {[%clk 0:00:21]} 43... Bh1 {[%clk 0:00:22.3]} 44. Be2
{[%clk 0:00:18.8]} 44... Be4 {[%clk 0:00:20.9]} 45. Bd1 {[%clk 0:00:17.5]} 45...
Bh1 {[%clk 0:00:19.5]} 46. Kd4 {[%clk 0:00:15.7]} 46... Bg2 {[%clk 0:00:17.1]}
47. Bc2 {[%clk 0:00:15.6]} 47... Nd7 {[%clk 0:00:16.3]} 48. Ba4+ {[%clk
0:00:14.8]} 48... Kc7 {[%clk 0:00:16.1]} 49. Bb5 {[%clk 0:00:09]} 49... Bc6
{[%clk 0:00:16]} 50. Ba6 {[%clk 0:00:06.6]} 50... Nc5 {[%clk 0:00:16.4]} 51. Bb5
{[%clk 0:00:06.6]} 51... Bxb5 {[%clk 0:00:16.3]} 52. cxb5 {[%clk 0:00:07.5]}
52... Nb3+ {[%clk 0:00:15.5]} 53. Kc3 {[%clk 0:00:06.7]} 53... Nc5 {[%clk
0:00:14.9]} 54. Bxc5 {[%clk 0:00:05]} 54... bxc5 {[%clk 0:00:15.8]} 55. Kb3
{[%clk 0:00:05.6]} 55... Kb7 {[%clk 0:00:15.9]} 56. Kc3 {[%clk 0:00:04.6]} 56...
Kc7 {[%clk 0:00:16.3]} 57. Kb3 {[%clk 0:00:05.1]} 57... Kb7 {[%clk 0:00:16.8]}
58. Kc3 {[%clk 0:00:05.2]} 58... Kc7 {[%clk 0:00:17.3]} 1/2-1/2

[Event "Early-Titled-Tuesday-Blitz-May-28-2024"]
[Site "Chess.com"]
[Date "2024.05.28"]
[Round "10"]
[White "rhwr"]
[Black "Kumi29"]
[Result "0-1"]
[WhiteElo "2337"]
[BlackElo "2574"]
[TimeControl "180+1"]
[EndTime "9:58:47 PDT"]
[Termination "Kumi29 won by checkmate"]

1. e4 {[%clk 0:03:00.9]} 1... e5 {[%clk 0:03:00.2]} 2. Nf3 {[%clk 0:03:00.2]}
2... Nf6 {[%clk 0:03:00.6]} 3. Nc3 {[%clk 0:02:56.1]} 3... Nc6 {[%clk
0:03:00.9]} 4. Bb5 {[%clk 0:02:56.1]} 4... Nd4 {[%clk 0:03:00.1]} 5. Bc4 {[%clk
0:02:53.4]} 5... Nxf3+ {[%clk 0:02:59]} 6. Qxf3 {[%clk 0:02:52.8]} 6... d6
{[%clk 0:02:59.6]} 7. h3 {[%clk 0:02:51.6]} 7... Be7 {[%clk 0:02:59.9]} 8. O-O
{[%clk 0:02:50.8]} 8... O-O {[%clk 0:03:00.3]} 9. Ne2 {[%clk 0:02:32.4]} 9... c6
{[%clk 0:02:59.7]} 10. d3 {[%clk 0:02:25.4]} 10... b5 {[%clk 0:02:57.6]} 11. Bb3
{[%clk 0:02:25]} 11... Be6 {[%clk 0:02:56]} 12. Ng3 {[%clk 0:02:18.1]} 12... a5
{[%clk 0:02:47.1]} 13. c3 {[%clk 0:02:13.4]} 13... a4 {[%clk 0:02:45.6]} 14. Bc2
{[%clk 0:02:13.1]} 14... Qd7 {[%clk 0:02:42.5]} 15. d4 {[%clk 0:02:07.6]} 15...
Qa7 {[%clk 0:02:14.3]} 16. Rd1 {[%clk 0:02:03.9]} 16... c5 {[%clk 0:02:09]} 17.
Be3 {[%clk 0:01:56.8]} 17... Rfd8 {[%clk 0:02:06]} 18. Nf5 {[%clk 0:01:16.6]}
18... Bxf5 {[%clk 0:02:05.8]} 19. Qxf5 {[%clk 0:01:15.5]} 19... Qc7 {[%clk
0:02:05.5]} 20. Rac1 {[%clk 0:01:10.5]} 20... Nd7 {[%clk 0:01:45.8]} 21. f4
{[%clk 0:01:06.6]} 21... g6 {[%clk 0:01:38.8]} 22. Qg4 {[%clk 0:01:06]} 22... h5
{[%clk 0:01:36.5]} 23. Qf3 {[%clk 0:01:04.8]} 23... exf4 {[%clk 0:01:25.2]} 24.
Bxf4 {[%clk 0:01:04.1]} 24... Qb6 {[%clk 0:01:17]} 25. Be3 {[%clk 0:01:03.2]}
25... Bf6 {[%clk 0:01:04.5]} 26. Rf1 {[%clk 0:00:59.7]} 26... cxd4 {[%clk
0:00:55.5]} 27. cxd4 {[%clk 0:00:57.5]} 27... Rf8 {[%clk 0:00:53.8]} 28. Rcd1
{[%clk 0:00:52.7]} 28... Rac8 {[%clk 0:00:51.8]} 29. Bb1 {[%clk 0:00:51.7]}
29... Bg7 {[%clk 0:00:48.7]} 30. g4 {[%clk 0:00:44.9]} 30... hxg4 {[%clk
0:00:48]} 31. hxg4 {[%clk 0:00:44.9]} 31... b4 {[%clk 0:00:43.1]} 32. Kg2 {[%clk
0:00:40]} 32... Nf6 {[%clk 0:00:39.1]} 33. e5 {[%clk 0:00:33]} 33... Nh7 {[%clk
0:00:28.8]} 34. Rh1 {[%clk 0:00:29.8]} 34... dxe5 {[%clk 0:00:23.3]} 35. Rxh7
{[%clk 0:00:29]} 35... Kxh7 {[%clk 0:00:20.5]} 36. Rh1+ {[%clk 0:00:29.5]} 36...
Kg8 {[%clk 0:00:20.2]} 37. Qh3 {[%clk 0:00:30.4]} 37... f5 {[%clk 0:00:16]} 38.
gxf5 {[%clk 0:00:27.1]} 38... Qc6+ {[%clk 0:00:11]} 39. Kg1 {[%clk 0:00:18.9]}
39... e4 {[%clk 0:00:10.8]} 40. Qh7+ {[%clk 0:00:12.7]} 40... Kf7 {[%clk
0:00:10.9]} 41. Bh6 {[%clk 0:00:06.3]} 41... Rg8 {[%clk 0:00:08.6]} 42. fxg6+
{[%clk 0:00:02.3]} 42... Qxg6+ {[%clk 0:00:08.4]} 43. Qxg6+ {[%clk 0:00:03.2]}
43... Kxg6 {[%clk 0:00:09.3]} 44. Bxe4+ {[%clk 0:00:02.4]} 44... Kf6 {[%clk
0:00:08]} 45. Bf4 {[%clk 0:00:01.2]} 45... Bh6+ {[%clk 0:00:06.3]} 46. Kf2
{[%clk 0:00:01.1]} 46... Bxf4 {[%clk 0:00:06.7]} 47. Rg1 {[%clk 0:00:01.1]}
47... Be3+ {[%clk 0:00:06.2]} 48. Kxe3 {[%clk 0:00:01]} 48... Rxg1 {[%clk
0:00:07.1]} 49. Kf3 {[%clk 0:00:01.4]} 49... Re1 {[%clk 0:00:07.4]} 50. Kf4
{[%clk 0:00:02.3]} 50... Rxe4+ {[%clk 0:00:07.7]} 51. Kf3 {[%clk 0:00:03.2]}
51... Rce8 {[%clk 0:00:07.4]} 52. Kg3 {[%clk 0:00:03.1]} 52... Kg5 {[%clk
0:00:07.7]} 53. Kf3 {[%clk 0:00:04]} 53... Re3+ {[%clk 0:00:08.2]} 54. Kf2
{[%clk 0:00:04]} 54... Re2+ {[%clk 0:00:09.1]} 55. Kf3 {[%clk 0:00:04]} 55...
R8e3# {[%clk 0:00:09.8]} 0-1

[Event "Early-Titled-Tuesday-Blitz-May-28-2024"]
[Site "Chess.com"]
[Date "2024.05.28"]
[Round "10"]
[White "Kielinkei"]
[Black "MikeSailer"]
[Result "0-1"]
[WhiteElo "2449"]
[BlackElo "2115"]
[TimeControl "180+1"]
[EndTime "9:58:47 PDT"]
[Termination "MikeSailer won by resignation"]

1. c4 {[%clk 0:03:00.9]} 1... Nf6 {[%clk 0:02:59]} 2. g3 {[%clk 0:03:01.1]} 2...
c6 {[%clk 0:02:56.8]} 3. Bg2 {[%clk 0:02:59.8]} 3... d5 {[%clk 0:02:55.9]} 4.
Nf3 {[%clk 0:02:53.7]} 4... g6 {[%clk 0:02:56.4]} 5. b3 {[%clk 0:02:52.5]} 5...
Bg7 {[%clk 0:02:56.9]} 6. Bb2 {[%clk 0:02:53]} 6... O-O {[%clk 0:02:57.5]} 7.
O-O {[%clk 0:02:53.2]} 7... b6 {[%clk 0:02:58]} 8. d4 {[%clk 0:02:52.7]} 8...
Bb7 {[%clk 0:02:57.7]} 9. Nc3 {[%clk 0:02:51.4]} 9... e6 {[%clk 0:02:57.8]} 10.
Rc1 {[%clk 0:02:47.6]} 10... Nbd7 {[%clk 0:02:58.4]} 11. Qc2 {[%clk 0:02:42.1]}
11... Rc8 {[%clk 0:02:54.5]} 12. Rfd1 {[%clk 0:02:40.1]} 12... Qe7 {[%clk
0:02:50.3]} 13. Qb1 {[%clk 0:02:38.9]} 13... Rfd8 {[%clk 0:02:49.3]} 14. e3
{[%clk 0:02:33.1]} 14... dxc4 {[%clk 0:02:30.8]} 15. bxc4 {[%clk 0:02:33.2]}
15... c5 {[%clk 0:02:31.1]} 16. d5 {[%clk 0:02:23.7]} 16... exd5 {[%clk
0:02:23]} 17. cxd5 {[%clk 0:02:08.3]} 17... Ne5 {[%clk 0:02:20.5]} 18. e4 {[%clk
0:01:58.7]} 18... Nxf3+ {[%clk 0:02:19.6]} 19. Bxf3 {[%clk 0:01:58.7]} 19... Nd7
{[%clk 0:02:05.3]} 20. Re1 {[%clk 0:01:46.2]} 20... Ne5 {[%clk 0:01:48.3]} 21.
Bg2 {[%clk 0:01:44.4]} 21... Nc4 {[%clk 0:01:48.4]} 22. Ba1 {[%clk 0:01:42.6]}
22... Bd4 {[%clk 0:01:24.7]} 23. Nb5 {[%clk 0:01:35.9]} 23... Bxa1 {[%clk
0:01:22.5]} 24. Qxa1 {[%clk 0:01:35.5]} 24... Ne5 {[%clk 0:01:15.5]} 25. Rcd1
{[%clk 0:01:23.6]} 25... Ba6 {[%clk 0:01:13.7]} 26. Nc3 {[%clk 0:01:14.4]} 26...
Nd3 {[%clk 0:01:07.3]} 27. Re3 {[%clk 0:01:13.1]} 27... c4 {[%clk 0:01:05.3]}
28. f4 {[%clk 0:01:09.9]} 28... Qc5 {[%clk 0:01:02.2]} 29. Re1 {[%clk
0:01:07.7]} 29... Nxe1 {[%clk 0:00:59.7]} 30. Qxe1 {[%clk 0:01:08.6]} 30... b5
{[%clk 0:00:56]} 31. e5 {[%clk 0:01:05.9]} 31... b4 {[%clk 0:00:55.7]} 32. Ne4
{[%clk 0:01:06.1]} 32... Qd4 {[%clk 0:00:53.9]} 33. Nf6+ {[%clk 0:01:04.9]}
33... Kg7 {[%clk 0:00:52.8]} 34. Kh1 {[%clk 0:00:56.3]} 34... c3 {[%clk
0:00:51.8]} 35. Re4 {[%clk 0:00:49.6]} 35... Qd2 {[%clk 0:00:43.7]} 36. d6
{[%clk 0:00:31.2]} 36... Qxe1+ {[%clk 0:00:39.1]} 37. Rxe1 {[%clk 0:00:32.1]}
37... Bc4 {[%clk 0:00:26.5]} 38. d7 {[%clk 0:00:29.4]} 38... Rc7 {[%clk
0:00:23.1]} 39. Ne8+ {[%clk 0:00:29.6]} 39... Kf8 {[%clk 0:00:18.7]} 40. Nxc7
{[%clk 0:00:29.7]} 40... Bxa2 {[%clk 0:00:19]} 41. Na6 {[%clk 0:00:16.4]} 41...
b3 {[%clk 0:00:18.6]} 42. Nc5 {[%clk 0:00:11.8]} 42... b2 {[%clk 0:00:18.8]} 43.
Be4 {[%clk 0:00:11.8]} 43... Ke7 {[%clk 0:00:17.5]} 44. Bb1 {[%clk 0:00:09.2]}
44... Bxb1 {[%clk 0:00:15.8]} 45. e6 {[%clk 0:00:03.2]} 45... c2 {[%clk
0:00:13.5]} 46. exf7+ {[%clk 0:00:03]} 46... Kxf7 {[%clk 0:00:14.1]} 47. Nb7
{[%clk 0:00:01.2]} 47... Rxd7 {[%clk 0:00:14]} 48. Nc5 {[%clk 0:00:01]} 48...
Rd1 {[%clk 0:00:13.2]} 49. Rg1 {[%clk 0:00:01]} 49... Rxg1+ {[%clk 0:00:11.5]}
50. Kxg1 {[%clk 0:00:01.9]} 50... c1=Q+ {[%clk 0:00:12.4]} 51. Kg2 {[%clk
0:00:02.5]} 0-1

[Event "Early-Titled-Tuesday-Blitz-May-28-2024"]
[Site "Chess.com"]
[Date "2024.05.28"]
[Round "10"]
[White "MITerryble"]
[Black "platy3"]
[Result "1-0"]
[WhiteElo "3027"]
[BlackElo "2888"]
[TimeControl "180+1"]
[EndTime "9:58:48 PDT"]
[Termination "MITerryble won by resignation"]

1. c4 {[%clk 0:03:00.9]} 1... e5 {[%clk 0:02:58.5]} 2. Nc3 {[%clk 0:03:00.8]}
2... Nf6 {[%clk 0:02:57.4]} 3. Nf3 {[%clk 0:03:00.2]} 3... Nc6 {[%clk
0:02:57.1]} 4. e3 {[%clk 0:02:57.4]} 4... Bb4 {[%clk 0:02:53.9]} 5. Qc2 {[%clk
0:02:54.6]} 5... Bxc3 {[%clk 0:02:53.9]} 6. Qxc3 {[%clk 0:02:55.5]} 6... Qe7
{[%clk 0:02:54.1]} 7. d3 {[%clk 0:02:42.8]} 7... d5 {[%clk 0:02:51.4]} 8. cxd5
{[%clk 0:02:42.9]} 8... Nxd5 {[%clk 0:02:51.4]} 9. Qb3 {[%clk 0:02:41.9]} 9...
Nb6 {[%clk 0:02:48.6]} 10. Bd2 {[%clk 0:02:41.5]} 10... Be6 {[%clk 0:02:48.1]}
11. Qc2 {[%clk 0:02:34.3]} 11... O-O {[%clk 0:02:45.2]} 12. a3 {[%clk
0:02:30.7]} 12... a5 {[%clk 0:02:43.8]} 13. Be2 {[%clk 0:02:28.9]} 13... a4
{[%clk 0:02:43.4]} 14. O-O {[%clk 0:02:28.3]} 14... Rfd8 {[%clk 0:02:41.2]} 15.
Rac1 {[%clk 0:02:27.7]} 15... Bb3 {[%clk 0:02:32.5]} 16. Qc5 {[%clk 0:02:18.1]}
16... Qe6 {[%clk 0:02:20.2]} 17. Ng5 {[%clk 0:02:07]} 17... Qg6 {[%clk
0:02:16.3]} 18. Ne4 {[%clk 0:02:05.5]} 18... Rd5 {[%clk 0:01:53.5]} 19. Qc3
{[%clk 0:02:05.1]} 19... Rad8 {[%clk 0:01:53.5]} 20. Be1 {[%clk 0:01:58.8]}
20... Nd7 {[%clk 0:01:23]} 21. f4 {[%clk 0:01:25.9]} 21... exf4 {[%clk
0:01:12.2]} 22. Rxf4 {[%clk 0:01:26.8]} 22... f5 {[%clk 0:01:03.1]} 23. Ng3
{[%clk 0:01:19.7]} 23... Qe6 {[%clk 0:01:00.7]} 24. Bf2 {[%clk 0:01:14.3]} 24...
Rc5 {[%clk 0:00:50.1]} 25. Qe1 {[%clk 0:01:10.9]} 25... g6 {[%clk 0:00:45.4]}
26. e4 {[%clk 0:00:59.1]} 26... Rxc1 {[%clk 0:00:44.8]} 27. Qxc1 {[%clk
0:01:00]} 27... fxe4 {[%clk 0:00:23.9]} 28. Nxe4 {[%clk 0:01:00.9]} 28... Rf8
{[%clk 0:00:15.1]} 29. Bg4 {[%clk 0:00:58.8]} 29... Qe5 {[%clk 0:00:13]} 30.
Rxf8+ {[%clk 0:00:43.7]} 30... Nxf8 {[%clk 0:00:13.9]} 31. Nc5 {[%clk
0:00:44.3]} 31... Nd4 {[%clk 0:00:07]} 32. Nxb7 {[%clk 0:00:16.1]} 32... h5
{[%clk 0:00:06.8]} 33. Qc5 {[%clk 0:00:16.2]} 33... Ne2+ {[%clk 0:00:02.7]} 34.
Kf1 {[%clk 0:00:13]} 34... Qxc5 {[%clk 0:00:03.1]} 35. Nxc5 {[%clk 0:00:12.3]}
35... Nf4 {[%clk 0:00:02.8]} 36. Bf3 {[%clk 0:00:10.2]} 36... Kf7 {[%clk
0:00:02.5]} 37. g3 {[%clk 0:00:09.6]} 37... N4e6 {[%clk 0:00:02.4]} 38. Nxb3
{[%clk 0:00:10.1]} 38... axb3 {[%clk 0:00:03.2]} 39. Bd5 {[%clk 0:00:10.9]}
39... Ke7 {[%clk 0:00:02.9]} 40. Bxb3 {[%clk 0:00:11.1]} 40... Nd7 {[%clk
0:00:03.6]} 41. Be3 {[%clk 0:00:10.2]} 41... Nec5 {[%clk 0:00:03.3]} 42. Bc2
{[%clk 0:00:09.4]} 42... Ne6 {[%clk 0:00:03]} 43. b4 {[%clk 0:00:09.4]} 43...
Kd6 {[%clk 0:00:03.4]} 44. d4 {[%clk 0:00:09.3]} 44... g5 {[%clk 0:00:03.1]} 45.
Bb3 {[%clk 0:00:09]} 45... Nb6 {[%clk 0:00:02.9]} 46. Ke2 {[%clk 0:00:08.8]}
46... Nd5 {[%clk 0:00:03.4]} 47. Kd3 {[%clk 0:00:08.4]} 47... h4 {[%clk
0:00:03.2]} 48. Bd2 {[%clk 0:00:08.3]} 48... h3 {[%clk 0:00:03]} 49. a4 {[%clk
0:00:07.7]} 49... c6 {[%clk 0:00:03.1]} 50. b5 {[%clk 0:00:06.9]} 50... cxb5
{[%clk 0:00:02.7]} 51. axb5 {[%clk 0:00:07.8]} 51... Nec7 {[%clk 0:00:03.4]} 52.
Bc4 {[%clk 0:00:08]} 52... g4 {[%clk 0:00:02]} 53. Ke4 {[%clk 0:00:08.2]} 53...
Nf6+ {[%clk 0:00:01.8]} 54. Kf5 {[%clk 0:00:07.9]} 54... Ncd5 {[%clk 0:00:01.6]}
55. Bxd5 {[%clk 0:00:07.5]} 55... Nxd5 {[%clk 0:00:01.8]} 56. Kxg4 {[%clk
0:00:08]} 56... Nf6+ {[%clk 0:00:01.6]} 57. Kxh3 {[%clk 0:00:08.1]} 57... Ne4
{[%clk 0:00:02.3]} 1-0